lending/lending_fUSD_20260306
["ID","MTS","AMOUNT","RATE_DAILY","PERIOD"]
[407766999,1772781038234,-500.0,0.00016327,2]
[407767000,1772781038244,-500.0,0.00016327,2]
[407767001,1772781038255,-500.0,0.00016327,2]
[407767002,1772781038266,-500.0,0.00016327,2]
[407767003,1772781038276,-500.0,0.00016327,2]
[407767004,1772781038286,-357.60188806,0.00016327,2]
[407767005,1772781038296,-500.0,0.00016327,2]
[407767006,1772781038306,-500.0,0.00016327,2]
[407767007,1772781038316,-500.0,0.00016327,2]
[407767008,1772781038326,-500.0,0.00016327,2]
[407767009,1772781038337,-151.0,0.00016327,2]
[407767010,1772781038346,-151.0,0.00016327,2]
[407767011,1772781038356,-500.0,0.00016327,2]
[407767012,1772781038366,-151.0,0.00016327,2]
[407767013,1772781038376,-500.0,0.00016327,2]
[407767014,1772781038386,-500.0,0.00016327,2]
[407767015,1772781038395,-151.0,0.00016327,2]
[407767016,1772781038406,-151.0,0.00016327,2]
[407767017,1772781038417,-515.87255842,0.00016327,2]
[407767018,1772781038427,-151.0,0.00016327,2]
[407767019,1772781038436,-151.0,0.00016327,2]
[407767020,1772781038450,-151.0,0.00016327,2]
[407767021,1772781038460,-151.0,0.00016327,2]
[407767022,1772781038470,-151.0,0.00016327,2]
[407767023,1772781038481,-151.0,0.00016327,2]
[407767024,1772781038491,-151.0,0.00016327,2]
[407767025,1772781038505,-151.0,0.00016327,2]
[407767026,1772781038516,-151.0,0.00016327,2]
[407767027,1772781038527,-196.15063916,0.00016327,2]
[407767028,1772781038536,-151.0,0.00016327,2]
[407767029,1772781038546,-151.0,0.00016327,2]
[407767030,1772781038556,-151.0,0.00016327,2]
[407767031,1772781038566,-151.0,0.00016327,2]
[407767032,1772781038575,-151.0,0.00016327,2]
[407767033,1772781038586,-151.0,0.00016327,2]
[407767034,1772781038596,-151.0,0.00016327,2]
[407767035,1772781038606,-151.0,0.00016327,2]
[407767036,1772781038615,-151.0,0.00016327,2]
[407767037,1772781038625,-151.0,0.00016327,2]
[407767038,1772781038635,-151.0,0.00016327,2]
[407767039,1772781038644,-151.0,0.00016327,2]
[407767040,1772781038654,-600.0,0.00016336,30]
[407767041,1772781038664,-1573.717,0.00016336,2]
[407767042,1772781038673,-199.509,0.00016336,2]
[407767043,1772781038684,-200.0,0.0001634,2]
[407767044,1772781038697,-500.0,0.00016373,2]
[407767045,1772781038707,-500.0,0.00016373,2]
[407767046,1772781038717,-152.00387375,0.00016373,2]
[407767047,1772781038727,-500.0,0.00016373,2]
[407767048,1772781038736,-500.0,0.00016373,2]
[407767049,1772781038746,-500.0,0.00016373,2]
[407767050,1772781038756,-1664.0,0.00016387,2]
[407767051,1772781038766,-11620.5403,0.00016412,2]
[407767052,1772781038775,-1000.0,0.00016412,2]
[407767053,1772781038786,-96610.831,0.00016412,2]
[407767054,1772781038796,-598.0,0.00016419,2]
[407767055,1772781038805,-1132.0,0.00016461,2]
[407767056,1772781038815,-1776.20977685,0.00016466,2]
[407767057,1772781038825,-308.33409821,0.00016473,2]
[407767058,1772781038835,-500.0,0.00016473,2]
[407767059,1772781038846,-500.0,0.00016473,2]
[407767060,1772781038856,-500.0,0.00016473,2]
[407767061,1772781038866,-500.0,0.00016473,2]
[407767062,1772781038876,-500.0,0.00016473,2]
[407767063,1772781038889,-1767.0,0.00016494,2]
[407767064,1772781038899,-230.98606825,0.00016512,2]
[407767065,1772781038909,-500.0,0.00016512,2]
[407767066,1772781038919,-500.0,0.00016512,2]
[407767067,1772781038928,-283.81037588,0.00016512,2]
[407767068,1772781038938,-1086.65669073,0.00016647,2]
[407767069,1772781038949,-1230.55,0.0001668,2]
[407767070,1772781039400,-1000.0,0.00016721,2]
[407767071,1772781039416,-1000.0,0.00016721,2]
[407767072,1772781039426,-427.60857695,0.00016721,2]
[407767073,1772781039435,-763.99266427,0.00016763,2]
[407767074,1772781039444,-171.04,0.0001679,2]
[407767075,1772781039455,-500.0,0.00016821,2]
[407767076,1772781039465,-200.0,0.00016895,2]
[407767077,1772781039475,-1776.20977685,0.00016895,2]
[407767078,1772781039484,-1000.0,0.00016921,2]
[407767079,1772781039494,-1000.0,0.00016921,2]
[407767080,1772781039503,-1000.0,0.00016921,2]
[407767081,1772781039512,-500.0,0.00016921,2]
[407767082,1772781039533,-1000.0,0.00016921,2]
[407767083,1772781039544,-500.0,0.00016973,2]
[407767084,1772781039553,-500.0,0.00016973,2]
[407767085,1772781039563,-500.0,0.00016973,2]
[407767086,1772781039572,-500.0,0.00016973,2]
[407767087,1772781039582,-500.0,0.00016973,2]
[407767088,1772781039592,-500.0,0.00016973,2]
[407767089,1772781039602,-500.0,0.00016973,2]
[407767090,1772781039612,-500.0,0.00016973,2]
[407767091,1772781039622,-210937.72845545,0.00017,2]
[407767092,1772781039633,-300.0,0.00017,2]
[407767093,1772781039642,-152.09858182,0.00017,2]
[407767094,1772781039652,-1000.0,0.00017021,2]
[407767095,1772781039662,-1056.1229892,0.00017021,2]
[407767096,1772781039672,-949.5306254,0.00017021,2]
[407767097,1772781039682,-1000.0,0.00017021,2]
[407767098,1772781039692,-1000.0,0.00017021,2]
[407767099,1772781039701,-1086.65669073,0.00017053,2]
[407767100,1772781039711,-171.04,0.0001706,2]
[407767101,1772781039720,-1230.55,0.00017077,2]
[407767102,1772781039730,-19873.59360607,0.0001711,2]
[407767103,1772781039739,-192.108435,0.0001722,2]
[407767104,1772781039749,-180.42,0.00017245,2]
[407767105,1772781039759,-1500.0,0.00017268,2]
[407767106,1772781039768,-168.3299599,0.00017268,2]
[407767107,1772781039778,-763.99266427,0.00017286,2]
[407767108,1772781039787,-1776.20977685,0.00017325,2]
[407767109,1772781039797,-171.04,0.0001733,2]
[407767110,1772781039807,-935.0,0.00017346,2]
[407767111,1772781039816,-265.639481,0.00017352,2]
[407767112,1772781039825,-1086.65669073,0.0001746,2]
[407767113,1772781039835,-1500.0,0.00017468,2]
[407767114,1772781039844,-1500.0,0.00017468,2]
[407767115,1772781039853,-1500.0,0.00017468,2]
[407767116,1772781039863,-1500.0,0.00017468,2]
[407767117,1772781039872,-1230.55,0.00017474,2]
[407767118,1772781039882,-5621.12574049,0.000175,3]
[407767119,1772781039891,-699.98,0.0001751,7]
[407767120,1772781039901,-1000.0,0.00017521,2]
[407767121,1772781039911,-1000.0,0.00017521,2]
[407767122,1772781039921,-1000.0,0.00017521,2]
[407767123,1772781039931,-494.64624274,0.00017521,2]
[407767124,1772781039940,-1000.0,0.00017521,2]
[407767125,1772781039950,-1000.0,0.00017521,2]
[407767126,1772781039959,-735.21838039,0.00017521,2]
[407767127,1772781039969,-1000.0,0.00017521,2]
[407767128,1772781039978,-4795.34,0.00017548,2]
[407767129,1772781039988,-1500.0,0.00017568,2]
[407767130,1772781039997,-1500.0,0.00017568,2]
[407767131,1772781040007,-1500.0,0.00017568,2]
[407767132,1772781040016,-171.04,0.000176,2]
[407767133,1772781040026,-420.0,0.00017629,2]
[407767134,1772781040036,-600.0,0.00017641,2]
[407767135,1772781040046,-500.0,0.00017667,2]
[407767136,1772781040055,-600.0,0.0001771,2]
[407767137,1772781040065,-1799.45490221,0.0001771,2]
[407767138,1772781040079,-267.40478111,0.0001771,2]
[407767139,1772781040090,-1742.67155592,0.0001771,2]
[407767140,1772781040100,-300.0,0.0001771,2]
[407767141,1772781040109,-250.0,0.0001771,2]
[407767142,1772781040119,-500.0,0.0001771,2]
[407767143,1772781040128,-193.41901021,0.0001771,2]
[407767144,1772781040138,-2500.0,0.0001771,2]
[407767145,1772781040148,-1714.34561729,0.0001771,2]
[407767146,1772781040157,-1680.0,0.00017717,2]
[407767147,1772781040167,-500.0,0.00017726,2]
[407767148,1772781040177,-1776.20977685,0.00017754,2]
[407767149,1772781040187,-763.99266427,0.00017809,2]
[407767150,1772781040196,-1902.19853182,0.00017816,2]
[407767151,1772781040206,-1086.65669073,0.00017867,2]
[407767152,1772781040216,-171.04,0.0001787,2]
[407767153,1772781040225,-1489.71509886,0.00018016,2]
[407767154,1772781040236,-2000.0,0.00018016,2]
[407767155,1772781040245,-1287.80347915,0.00018016,2]
[407767157,1772781040255,-2000.0,0.00018016,2]
[407767159,1772781040264,-1500.0,0.00018068,2]
[407767160,1772781040274,-1500.0,0.00018068,2]
[407767161,1772781040284,-1134.58548457,0.00018068,2]
[407767162,1772781040293,-1500.0,0.00018068,2]
[407767163,1772781040302,-1500.0,0.00018068,2]
[407767165,1772781040312,-1500.0,0.00018068,2]
[407767166,1772781040321,-2700.0,0.00018082,7]
[407767168,1772781040331,-455.32379031,0.00018087,2]
[407767170,1772781040344,-500.0,0.0001811,2]
[407767172,1772781040354,-2000.0,0.00018116,2]
[407767174,1772781040363,-557.2086331,0.00018116,2]
[407767176,1772781040373,-2000.0,0.00018116,2]
[407767177,1772781040382,-3388.83143379,0.00018124,2]
[407767178,1772781040392,-721.12765535,0.00018124,2]
[407767179,1772781040401,-151.0,0.00018124,2]
[407767180,1772781040411,-500.0,0.00018124,2]
[407767181,1772781040420,-151.0,0.00018124,2]
[407767182,1772781040430,-500.0,0.00018124,2]
[407767183,1772781040440,-151.0,0.00018124,2]
[407767184,1772781040454,-500.0,0.00018124,2]
[407767185,1772781040463,-151.0,0.00018124,2]
[407767186,1772781040477,-500.0,0.00018124,2]
[407767187,1772781040488,-151.0,0.00018124,2]
[407767188,1772781040498,-500.0,0.00018124,2]
[407767189,1772781040509,-151.0,0.00018124,2]
[407767190,1772781040525,-500.0,0.00018124,2]
[407767191,1772781040535,-300.0,0.00018124,2]
[407767192,1772781040547,-151.0,0.00018124,2]
[407767193,1772781040563,-698.27174692,0.00018124,2]
[407767194,1772781040573,-500.0,0.00018124,2]
[407767195,1772781040583,-300.0,0.00018124,2]
[407767196,1772781040594,-151.0,0.00018124,2]
[407767197,1772781040603,-250.0,0.00018124,2]
[407767198,1772781040614,-500.0,0.00018124,2]
[407767199,1772781040623,-305.95163096,0.00018124,2]
[407767200,1772781040634,-250.0,0.00018124,2]
[407767201,1772781040644,-500.0,0.00018124,2]
[407767202,1772781040654,-250.0,0.00018124,2]
[407767203,1772781040663,-500.0,0.00018124,2]
[407767204,1772781040673,-578.20924308,0.00018124,2]
[407767205,1772781040682,-250.0,0.00018124,2]
[407767206,1772781040692,-500.0,0.00018124,2]
[407767207,1772781040701,-250.0,0.00018124,2]
[407767208,1772781040711,-271.67882507,0.00018124,2]
[407767209,1772781040720,-250.0,0.00018124,2]
[407767210,1772781040730,-250.0,0.00018124,2]
[407767211,1772781040739,-250.0,0.00018124,2]
[407767212,1772781040749,-250.0,0.00018124,2]
[407767213,1772781040761,-174.61919141,0.00018124,2]
[407767214,1772781040782,-250.0,0.00018124,2]
[407767215,1772781040798,-219.73015263,0.00018124,2]
[407767216,1772781040807,-250.0,0.00018124,2]
[407767217,1772781040817,-500.0,0.00018124,2]
[407767218,1772781040826,-500.0,0.00018124,2]
[407767219,1772781040836,-500.0,0.00018124,2]
[407767220,1772781040845,-500.0,0.00018124,2]
[407767221,1772781040855,-250.0,0.00018124,2]
[407767222,1772781040865,-151.0,0.00018124,2]
[407767223,1772781040874,-500.0,0.00018124,2]
[407767224,1772781040883,-500.0,0.00018124,2]
[407767225,1772781040897,-250.0,0.00018124,2]
[407767226,1772781040906,-500.0,0.00018124,2]
[407767227,1772781040916,-250.0,0.00018124,2]
[407767228,1772781040926,-500.0,0.00018124,2]
[407767229,1772781040936,-250.0,0.00018124,2]
[407767230,1772781040946,-500.0,0.00018124,2]
[407767231,1772781040956,-1000.0,0.00018124,2]
[407767232,1772781040966,-693.3919763,0.00018124,2]
[407767233,1772781040975,-250.0,0.00018124,2]
[407767234,1772781040985,-500.0,0.00018124,2]
[407767235,1772781040995,-250.0,0.00018124,2]
[407767236,1772781041005,-500.0,0.00018124,2]
[407767237,1772781041014,-250.0,0.00018124,2]
[407767238,1772781041024,-500.0,0.00018124,2]
[407767239,1772781041034,-250.0,0.00018124,2]
[407767240,1772781041043,-500.0,0.00018124,2]
[407767241,1772781041053,-500.0,0.00018124,2]
[407767242,1772781041062,-209.40437685,0.00018124,2]
[407767243,1772781041072,-503.01170887,0.00018124,2]
[407767244,1772781041082,-1000.0,0.00018124,2]
[407767245,1772781041091,-1000.0,0.00018124,2]
[407767246,1772781041105,-1000.0,0.00018124,2]
[407767247,1772781041114,-1000.0,0.00018124,2]
[407767248,1772781041124,-1000.0,0.00018124,2]
[407767249,1772781041133,-1000.0,0.00018124,2]
[407767250,1772781041143,-500.0,0.00018124,2]
[407767251,1772781041152,-500.0,0.00018124,2]
[407767252,1772781041162,-508.72212285,0.00018124,2]
[407767253,1772781041171,-262.90206542,0.00018124,2]
[407767254,1772781041181,-743.50770149,0.00018124,2]
[407767255,1772781041191,-269.917619,0.00018124,2]
[407767256,1772781041205,-171.04,0.0001814,2]
[407767257,1772781041215,-719.04747942,0.00018179,2]
[407767258,1772781041225,-705.88057451,0.00018215,2]
[407767259,1772781041234,-745.65223616,0.00018234,2]
[407767260,1772781041244,-1086.65669073,0.00018273,2]
[407767261,1772781041253,-773.2413689,0.00018289,2]
[407767262,1772781041263,-301.78790722,0.00018291,2]
[407767263,1772781041272,-500.0,0.00018291,2]
[407767264,1772781041286,-500.0,0.00018291,2]
[407767265,1772781041295,-763.99266427,0.00018331,2]
[407767266,1772781041305,-801.85129955,0.00018344,2]
[407767267,1772781041314,-600.0,0.00018356,7]
[407767268,1772781041324,-500.0,0.00018356,7]
[407767269,1772781041334,-309.0,0.00018371,5]
[407767270,1772781041344,-831.51979763,0.00018399,2]
[407767271,1772781041353,-171.04,0.0001841,2]
[407767272,1772781041363,-862.28603014,0.00018454,2]
[407767273,1772781041372,-894.19061326,0.00018509,2]
[407767274,1772781041381,-23868.35,0.00018533,2]
[407767275,1772781041391,-895.0,0.00018546,2]
[407767276,1772781041401,-927.27566595,0.00018564,2]
[407767277,1772781041411,-2500.0,0.00018564,2]
[407767278,1772781041423,-2500.0,0.00018564,2]
[407767279,1772781041433,-3348.0,0.00018578,2]
[407767280,1772781041446,-2000.0,0.00018616,2]
[407767281,1772781041457,-2000.0,0.00018616,2]
[407767282,1772781041467,-942.99956491,0.00018616,2]
[407767283,1772781041476,-2000.0,0.00018616,2]
[407767284,1772781041487,-2000.0,0.00018616,2]
[407767285,1772781041496,-961.58486559,0.00018619,2]
[407767286,1772781041506,-778.57186039,0.00018664,2]
[407767287,1772781041516,-2500.0,0.00018664,2]
[407767288,1772781041525,-181.08010149,0.00018672,2]
[407767289,1772781041538,-1000.0,0.00018672,2]
[407767290,1772781041558,-272.62944185,0.00018672,2]
[407767291,1772781041571,-997.16350561,0.00018674,2]
[407767292,1772781041581,-1086.65669073,0.0001868,2]
[407767293,1772781041592,-171.04,0.0001868,2]
[407767294,1772781041602,-160.0,0.0001872,2]
[407767295,1772781041612,-3502.0,0.000188,2]
[407767296,1772781041622,-1341.0,0.000188,2]
[407767297,1772781041631,-751.844,0.000188,2]
[407767298,1772781041641,-1042.0,0.000188,2]
[407767299,1772781041651,-150.31,0.000188,2]
[407767300,1772781041660,-1000.0,0.00018839,2]
[407767301,1772781041670,-849.85488597,0.00018839,2]
[407767302,1772781041684,-763.99266427,0.00018854,2]
[407767303,1772781041694,-153.26719895,0.00018878,2]
[407767304,1772781041704,-524.98,0.0001888,7]
[407767305,1772781041714,-299.95430794,0.00018915,2]
[407767306,1772781041724,-171.04,0.0001895,2]
[407767307,1772781041734,-160.0,0.00018957,2]
[407767308,1772781041743,-172.74325605,0.00018957,2]
[407767309,1772781041753,-350.0,0.00019,2]
[407767310,1772781041764,-11374.7666433,0.00019,2]
[407767311,1772781041774,-244.66008676,0.00019066,2]
[407767312,1772781041784,-180.42,0.0001907,2]
[407767313,1772781041793,-1086.65669073,0.00019087,2]
[407767314,1772781041802,-683.11883857,0.00019112,2]
[407767315,1772781041812,-3000.0,0.00019112,2]
[407767316,1772781041823,-2500.0,0.00019164,2]
[407767317,1772781041833,-2500.0,0.00019164,2]
[407767318,1772781041844,-446.12402339,0.00019164,2]
[407767319,1772781041854,-1649.86978781,0.00019164,2]
[407767320,1772781041864,-2700.0,0.00019178,7]
[407767321,1772781041874,-150.0,0.00019178,2]
[407767322,1772781041884,-2000.0,0.000192,2]
[407767323,1772781041894,-1000.0,0.000192,2]
[407767324,1772781041903,-3000.0,0.00019212,2]
[407767325,1772781041913,-171.04,0.0001922,2]
[407767326,1772781041922,-187.78006525,0.0001922,2]
[407767327,1772781041933,-1000.0,0.0001922,2]
[407767328,1772781041943,-282.71673119,0.0001922,2]
[407767329,1772781041953,-151.0,0.00019232,2]
[407767330,1772781041963,-587.0,0.00019272,2]
[407767331,1772781041973,-1000.0,0.00019294,2]
[407767332,1772781041984,-6999.76,0.00019295,7]
[407767333,1772781041994,-172.74325605,0.00019295,7]
[407767334,1772781042003,-168.0,0.00019322,2]
[407767335,1772781042013,-151.0,0.00019342,2]
[407767336,1772781042022,-12256.42,0.0001935,2]
[407767337,1772781042032,-847.0,0.0001936,2]
[407767338,1772781042042,-160.0,0.0001936,2]
[407767339,1772781042052,-763.99266427,0.00019377,2]
[407767340,1772781042065,-1500.0,0.00019387,2]
[407767341,1772781042085,-151.0,0.00019451,2]
[407767342,1772781042094,-600.0,0.00019452,7]
[407767343,1772781042104,-2351.0,0.00019465,2]
[407767344,1772781042113,-171.04,0.0001949,2]
[407767345,1772781042123,-1086.65669073,0.00019493,2]
[407767346,1772781042132,-151.0,0.00019561,2]
[407767347,1772781042142,-168.0,0.00019568,2]
[407767348,1772781042152,-1000.0,0.00019568,2]
[407767349,1772781042161,-477.40619926,0.0001959,2]
[407767350,1772781042170,-1092.14266887,0.000196,2]
[407767351,1772781042179,-1088.72844449,0.000196,2]
[407767352,1772781042188,-1007.26007216,0.000196,2]
[407767353,1772781042197,-1109.24013309,0.000196,2]
[407767354,1772781042207,-1129.87288072,0.000196,2]
[407767355,1772781042218,-947.61875944,0.000196,2]
[407767356,1772781042228,-751.96799956,0.000196,2]
[407767357,1772781042238,-922.0,0.00019603,2]
[407767358,1772781042248,-1219.676,0.00019603,2]
[407767359,1772781042257,-2459.0,0.00019614,2]
[407767360,1772781042267,-3746.0,0.00019614,2]
[407767361,1772781042277,-3500.0,0.0001966,2]
[407767362,1772781042286,-151.0,0.00019671,2]
[407767363,1772781042295,-844.0,0.0001968,2]
[407767364,1772781042305,-160.0,0.0001968,2]
[407767365,1772781042314,-225.99,0.00019702,2]
[407767366,1772781042324,-719.58548492,0.00019712,2]
[407767367,1772781042334,-3000.0,0.00019712,2]
[407767368,1772781042344,-250.0,0.00019726,2]
[407767369,1772781042353,-171.04,0.0001976,2]
[407767370,1772781042363,-3500.0,0.0001976,2]
[407767371,1772781042372,-194.72792766,0.00019768,2]
[407767372,1772781042382,-1000.0,0.00019768,2]
[407767373,1772781042392,-293.17725025,0.00019768,2]
[407767374,1772781042401,-151.0,0.00019781,2]
[407767375,1772781042410,-153.26719895,0.00019822,2]
[407767376,1772781042419,-1000.0,0.00019842,2]
[407767377,1772781042428,-180.42,0.00019849,2]
[407767378,1772781042438,-5800.0,0.00019883,2]
[407767379,1772781042450,-151.0,0.0001989,2]
[407767380,1772781042459,-5800.0,0.00019892,2]
[407767381,1772781042468,-151.68080357,0.000199,5]
[407767382,1772781042478,-154.43589556,0.000199,5]
[407767384,1772781042489,-5800.0,0.000199,2]
[407767385,1772781042498,-329.57949648,0.000199,7]
[407767386,1772781042507,-763.99266427,0.000199,2]
[407767387,1772781042518,-1086.65669073,0.000199,2]
[407767388,1772781042528,-455.32379031,0.000199,2]
[407767389,1772781042538,-4434.0,0.000199,2]
[407767390,1772781042547,-2000.0,0.00019935,2]
[407767391,1772781042557,-400.0,0.0001997,2]
[407767392,1772781042567,-500.0,0.00019973,2]
[407767393,1772781042576,-500.0,0.00019973,2]
[407767394,1772781042586,-500.0,0.00019973,2]
[407767395,1772781042596,-150.0,0.00019973,2]
[407767396,1772781042609,-295.0,0.00019986,2]
[407767397,1772781042619,-1197.84122109,0.0001999,2]
[407767398,1772781042629,-151.0,0.00019993,2]
[407767399,1772781042639,-13188.5679766,0.00019996,2]
[407767400,1772781042649,-132079.7800924,0.00019996,2]
[407767401,1772781042658,-151.0,0.00019997,2]
[407767402,1772781042668,-300.0,0.00019999,2]
[407767403,1772781042678,-318.10498866,0.00019999,2]
[407767404,1772781042687,-300.0,0.00019999,2]
[407767405,1772781042697,-300.0,0.00019999,2]
[407767406,1772781042707,-155.0,0.00019999,2]
[407767407,1772781042718,-150.0,0.00019999,2]
[407767408,1772781042727,-183.31183954,0.00019999,2]
[407767409,1772781042737,-1645646.8768806,0.0002,2]
[407767410,1772781042747,-18326.479848,0.0002,2]
[407767421,1772781043002,-2310.06501584,0.000169,2]
[407767423,1772781043012,-2603.28855423,0.00019614,2]
[407767431,1772781043110,-300.8706967,0.00016126,2]
[407767432,1772781043120,-3386.71144577,0.00019614,2]
[407767433,1772781043130,-29881.49090285,0.0002,2]
[407767434,1772781043178,-6333540.76649023,0.0002,2]
[407767435,1772781043190,-754.28381952,0.0002,2]
[407767436,1772781043201,-46083.07634884,0.0002,2]
[407767437,1772781043249,-3108961.0786648,0.0002,2]
[407767438,1772781043275,-8792.44010933,0.0002,2]
[407767439,1772781043287,-8947.21879473,0.0002,2]
[407767440,1772781043298,-8943.78386462,0.0002,2]
[407767441,1772781043310,-9077.54866152,0.0002,2]
[407767442,1772781043850,-1776.20977685,0.00018183,2]
[407767443,1772781043859,-423.79022315,0.000184,2]
[407767444,1772781043910,-1886.27479269,0.000184,2]
[407767445,1772781043919,-1661.45162564,0.0002,2]
[407767446,1772781043957,-106.33414237,0.0002,2]
[407767447,1772781043976,-438.70826076,0.0002,2]
[407767448,1772781045427,-18651.43215627,0.0002,2]
[407767449,1772781045438,-1844.77165021,0.0002,2]
[407767450,1772781045582,-1079.24772288,0.0002,2]
[407767451,1772781045643,-447.65077171,0.0002,2]
[407767543,1772781135323,265.24278713,0.00012,2]
[407767544,1772781136379,515.13819556,0.00012,2]
[407767545,1772781139913,151.50901731,0.00012,2]
[407767562,1772781190566,500.0,0.00015886,2]
[407767563,1772781216923,429.46,7.943e-05,2]
[407767564,1772781217127,429.46,8.361e-05,2]
[407767565,1772781217320,429.46,8.779e-05,2]
[407767566,1772781217521,429.46,9.197e-05,2]
[407767567,1772781217713,429.46,9.615e-05,2]
[407767568,1772781217909,429.46,0.00010033,2]
[407767569,1772781218105,429.46,0.00010451,2]
[407767570,1772781218309,429.46,0.00010869,2]
[407767571,1772781218508,429.46,0.00011287,2]
[407767572,1772781218714,429.46,0.00011705,2]
[407767573,1772781218913,429.46,0.00012123,2]
[407767574,1772781219123,429.46,0.00012541,2]
[407767575,1772781219319,429.46,0.0001296,2]
[407767576,1772781219533,429.46,0.00013378,2]
[407767577,1772781219730,429.46,0.00013796,2]
[407767578,1772781219939,429.46,0.00014214,2]
[407767579,1772781221090,429.46,0.00014632,2]
[407767580,1772781221122,125.97616979,0.0001505,2]
[407767581,1772781221145,303.48383021,0.0001505,2]
[407767582,1772781221175,429.46,0.00015468,2]
[407767583,1772781221212,429.46,0.00015886,2]
[407767606,1772781327587,2200.15,0.00015404,2]
[407767607,1772781396976,1852.42,0.00015886,2]
[407767608,1772781426209,248.4,0.00015886,2]
[407767609,1772781592056,2000.0,0.0001589,2]
[407767611,1772781683973,2536.63616979,0.000158,2]
[407767612,1772781683998,5237.36383021,0.000158,2]
[407767613,1772781820622,163.7,0.00014406,2]
[407767614,1772781949097,-200.0,0.00016486,2]
[407767615,1772781949118,-3223.17706761,0.00016487,2]
[407767616,1772782172135,-3.1485763,0.00016487,2]
[407767617,1772782172156,-600.0,0.00016487,2]
[407767618,1772782172176,-152.0,0.00016488,3]
[407767619,1772782172196,-22.40547033,0.00016501,2]
[407767625,1772782231806,-177.59452967,0.00016501,2]
[407767626,1772782231818,-250.0,0.00016506,2]
[407767627,1772782231829,-504.29547033,0.00016511,2]
[407767628,1772782231977,-95.70452967,0.00016511,2]
[407767629,1772782231987,-200.0,0.00016521,2]
[407767630,1772782231998,-250.0,0.00016607,2]
[407767631,1772782232009,-166.34,0.00016712,2]
[407767632,1772782232020,-155.57,0.0001679,2]
[407767633,1772782232030,-128.27255977,0.00016801,4]
[407767634,1772782232044,-23.72744023,0.00016801,4]
[407767635,1772782232055,-160.75,0.0001706,2]
[407767636,1772782232065,-150.99,0.0001706,2]
[407767637,1772782232076,-155.57,0.0001706,2]
[407767638,1772782232088,-152.0,0.00017114,5]
[407767639,1772782232098,-3266.402145,0.00017243,2]
[407767640,1772782232109,-155.57,0.0001733,2]
[407767641,1772782232119,-436.0,0.00017345,2]
[407767642,1772782232130,-328.0,0.00017386,2]
[407767643,1772782232141,-166.66,0.00017401,2]
[407767644,1772782232152,-152.0,0.00017427,6]
[407767645,1772782232162,-1200.0,0.00017508,2]
[407767646,1772782232172,-300.0,0.00017509,2]
[407767647,1772782232183,-296.79163168,0.0001751,7]
[407767648,1772782232199,-520.49846645,0.0001751,7]
[407767649,1772782232211,-461.17361602,0.0001751,7]
[407767650,1772782232237,-1591.43628585,0.0001751,7]
[407767651,1772782232247,-496.98,0.0001751,7]
[407767652,1772782232258,-23.1013396,0.000176,2]
[407767653,1772782232272,-132.4686604,0.000176,2]
[407767654,1772782232281,-270.02704452,0.00017725,2]
[407767655,1772782232294,-255.51004428,0.00017725,2]
[407767656,1772782232318,-649.4929112,0.00017725,2]
[407767657,1772782232329,-152.0,0.0001774,7]
[407767658,1772782232339,-166.66,0.00017767,2]
[407767660,1772782232349,-550.0,0.0001781,2]
[407767662,1772782232359,-9742.30056286,0.00017811,2]